bitfinex-derivatives/quotes_BTCF0:USTF0_20250406
["timestamp","ask_amount","ask_price","bid_price","bid_amount"]
[1743905539809,0.13891561,83437.0,83436.0,0.45881907]
[1743905540010,0.13891561,83437.0,83436.0,0.19881907]
[1743905540408,0.13891561,83437.0,83436.0,0.43881907]
[1743905540913,0.16951561,83437.0,83436.0,0.45881907]
[1743905541115,0.16951561,83437.0,83436.0,0.19881907]
[1743905541410,0.16951561,83437.0,83436.0,0.48881907]
[1743905541614,0.16951561,83437.0,83436.0,0.18222825]
[1743905542913,0.16052166,83437.0,83436.0,0.43881314]
[1743905543416,0.16052166,83437.0,83436.0,0.19881314]
[1743905543615,0.16052166,83437.0,83436.0,0.18222825]
[1743905543817,0.10956166,83437.0,83436.0,0.42222825]
[1743905544114,0.16052166,83437.0,83436.0,0.18228585]
[1743905546116,0.16052166,83437.0,83436.0,0.18224992]
[1743905547219,0.22622166,83437.0,83436.0,0.18224992]
[1743905547520,0.22622166,83437.0,83436.0,0.06692142]
[1743905548021,0.17526166,83437.0,83436.0,0.06692142]
[1743905548216,0.22622166,83437.0,83436.0,0.43861414]
[1743905548420,0.22622166,83437.0,83436.0,0.43161414]
[1743905548717,0.22622166,83437.0,83436.0,0.43661414]
[1743905549620,0.22622166,83437.0,83436.0,0.436559]
[1743905551921,0.22622166,83437.0,83436.0,0.696559]
[1743905552220,0.22622166,83437.0,83436.0,0.436559]
[1743905553322,0.22622166,83437.0,83436.0,0.43654904]
[1743905554322,0.22622166,83437.0,83436.0,0.46804904]
[1743905554525,0.22622166,83437.0,83436.0,0.43654904]
[1743905555225,0.22622166,83437.0,83436.0,0.67654904]
[1743905555526,0.22622166,83437.0,83436.0,0.70804904]
[1743905557622,0.22622166,83437.0,83436.0,0.70807592]
[1743905557824,0.22622166,83437.0,83436.0,0.46807592]
[1743905558228,0.22622166,83437.0,83436.0,0.72807592]
[1743905559027,0.22622166,83437.0,83436.0,0.71807592]
[1743905559525,0.22622166,83437.0,83436.0,0.46807592]
[1743905559724,0.12992166,83437.0,83436.0,0.46807592]
[1743905559924,0.12992166,83437.0,83436.0,0.49857592]
[1743905561228,0.16302166,83437.0,83436.0,0.498588]
[1743905561921,0.19472166,83437.0,83436.0,0.498588]
[1743905562127,0.19472166,83437.0,83436.0,0.778588]
[1743905562325,0.19472166,83437.0,83436.0,0.498588]
[1743905562527,0.19472166,83437.0,83436.0,0.758588]
[1743905563837,0.19472166,83437.0,83436.0,0.498588]
[1743905564433,0.19472166,83437.0,83436.0,0.49858802]
[1743905566228,0.19472166,83437.0,83436.0,0.4708238]
[1743905566533,0.19472166,83437.0,83436.0,0.4908238]
[1743905567131,0.14376166,83437.0,83436.0,0.4908238]
[1743905567333,0.19468166,83437.0,83436.0,0.2108238]
[1743905567934,0.19468166,83437.0,83436.0,0.4708238]
[1743905568137,0.19468166,83437.0,83436.0,0.2108238]
[1743905569036,0.19468166,83437.0,83436.0,0.4708238]
[1743905569636,0.19468166,83437.0,83436.0,0.2108238]
[1743905569833,0.19468166,83437.0,83436.0,0.4808238]
[1743905570033,0.19468166,83437.0,83436.0,0.2108238]
[1743905570234,0.19468166,83437.0,83436.0,0.4908238]
[1743905570732,0.06394196,83437.0,83436.0,0.2108238]
[1743905570928,0.14786946,83437.0,83436.0,0.2108238]
[1743905571129,0.14786946,83437.0,83436.0,0.4908238]
[1743905571635,0.14786946,83437.0,83436.0,0.2108238]
[1743905571831,0.14786946,83437.0,83436.0,0.4708238]
[1743905572032,0.09694946,83437.0,83436.0,0.4708238]
[1743905572229,0.06394196,83437.0,83436.0,0.2108238]
[1743905572434,0.14786946,83437.0,83436.0,0.3008238]
[1743905574235,0.14786946,83437.0,83436.0,0.2108238]
[1743905574538,0.14786946,83437.0,83436.0,0.1488238]
[1743905574735,0.14786946,83437.0,83436.0,0.0648953]
[1743905574940,0.21336946,83437.0,83436.0,0.0648953]
[1743905575641,0.21336946,83437.0,83436.0,0.1488238]
[1743905576940,0.21336946,83437.0,83436.0,0.4365604]
[1743905577242,0.21336946,83437.0,83436.0,0.3526319]
[1743905577832,0.21336946,83437.0,83436.0,0.4365604]
[1743905580649,0.21336946,83437.0,83436.0,0.7165604]
[1743905580940,0.21336946,83437.0,83436.0,0.43644841]
[1743905581944,0.21336946,83437.0,83436.0,0.35251991]
[1743905582141,0.21336946,83437.0,83436.0,0.43644841]
[1743905582843,0.21336946,83437.0,83436.0,0.35251991]
[1743905583934,0.21336946,83437.0,83436.0,0.06478331]
[1743905584135,0.21336946,83437.0,83436.0,0.06476505]
[1743905584345,0.21336946,83437.0,83436.0,0.14869355]
[1743905585841,0.21336946,83437.0,83436.0,0.14867044]
[1743905588146,0.21336946,83437.0,83436.0,0.06474194]
[1743905589737,0.57416946,83437.0,83436.0,0.06474194]
[1743905590342,0.57416946,83437.0,83436.0,0.14867044]
[1743905591549,0.57416946,83437.0,83436.0,0.06474194]
[1743905591749,0.57416946,83437.0,83436.0,0.14867044]
[1743905591946,0.68142809,83437.0,83436.0,0.06474194]
[1743905593149,0.68142809,83437.0,83426.0,0.33979154]
[1743905593150,0.01800001,83436.0,83426.0,0.33979154]
[1743905593347,0.0839436,83421.0,83420.0,0.58092275]
[1743905593538,0.1348636,83421.0,83420.0,0.58092275]
[1743905594255,0.0419743,83416.0,83412.0,0.00025972]
[1743905594436,0.4447516,83413.0,83412.0,0.00017972]
[1743905595051,0.4453916,83413.0,83412.0,0.00081972]
[1743905596446,0.0839556,83409.0,83408.0,0.0329]
[1743905596648,0.0839556,83409.0,83400.0,0.10008]
[1743905596649,0.0839637,83401.0,83400.0,0.10008]
[1743905596840,0.0839728,83392.0,83388.0,0.3608]
[1743905597037,0.0839728,83392.0,83391.0,0.00119958]
[1743905597038,0.0847728,83392.0,83391.0,0.00119958]
[1743905597237,0.0847728,83392.0,83391.0,0.00059958]
[1743905597737,0.1454728,83392.0,83391.0,0.00059958]
[1743905598444,0.1484728,83392.0,83391.0,0.00059958]
[1743905598842,0.1179728,83392.0,83391.0,0.00059958]
[1743905599049,0.1179728,83392.0,83391.0,0.03289958]
[1743905599259,0.12991342,83392.0,83391.0,0.03289958]
[1743905599553,0.18383342,83392.0,83391.0,0.03289958]
[1743905599753,0.13291342,83392.0,83391.0,0.03289958]
[1743905599955,0.18383342,83392.0,83391.0,0.03289958]
[1743905600450,0.18383342,83392.0,83391.0,0.04202605]
[1743905600847,0.18383342,83392.0,83391.0,0.04262605]
[1743905601047,0.18383342,83392.0,83391.0,0.07312605]
[1743905602045,0.18383342,83392.0,83391.0,0.07372605]
[1743905605158,0.18383342,83392.0,83391.0,0.09051474]
[1743905605946,0.18383342,83392.0,83391.0,0.08991474]
[1743905608664,0.18383342,83392.0,83391.0,0.17388854]
[1743905609054,0.15363342,83392.0,83391.0,0.08991474]
[1743905610361,0.15363342,83392.0,83391.0,0.09071474]
[1743905611461,0.15363342,83392.0,83391.0,0.08991474]
[1743905611661,0.10271342,83392.0,83391.0,0.09051474]
[1743905611864,0.15367342,83392.0,83391.0,0.09051474]
[1743905614262,0.10271342,83392.0,83391.0,0.09051474]
[1743905614457,0.15367342,83392.0,83391.0,0.09051474]
[1743905615466,0.15367342,83392.0,83391.0,0.08991474]
[1743905615669,0.18407342,83392.0,83391.0,0.08991474]
[1743905617266,0.18407342,83392.0,83391.0,0.17388854]
[1743905617666,0.01874062,83392.0,83391.0,0.17388854]
[1743905617974,0.15367342,83392.0,83391.0,0.17388854]
[1743905619272,0.15367342,83392.0,83391.0,0.17383851]
[1743905619473,0.15367342,83392.0,83390.0,0.07782783]
[1743905619674,0.15367342,83392.0,83391.0,0.0839738]
[1743905620172,0.15367342,83392.0,83391.0,0.0846138]
[1743905622172,0.15367342,83392.0,83391.0,0.0839738]
[1743905622874,0.15367342,83392.0,83391.0,0.09310298]
[1743905623060,0.15067342,83392.0,83391.0,0.15814298]
[1743905623260,0.15367342,83392.0,83391.0,0.15814298]
[1743905623882,0.15367342,83392.0,83391.0,0.15750298]
[1743905624268,0.15367342,83392.0,83391.0,0.15810298]
[1743905625667,0.18487342,83392.0,83391.0,0.15810298]
[1743905625870,0.54567342,83392.0,83391.0,0.15810298]
[1743905626473,0.72433572,83392.0,83391.0,0.15810298]
[1743905627679,0.72433572,83392.0,83391.0,0.15750298]
[1743905628074,0.67337572,83392.0,83391.0,0.15750298]
[1743905628270,0.72433572,83392.0,83391.0,0.15750298]
[1743905629473,0.60522587,83392.0,83391.0,0.15750298]
[1743905630274,0.60522587,83392.0,83391.0,0.15818298]
[1743905631269,0.60522587,83392.0,83391.0,0.07420918]
[1743905631674,0.60522587,83392.0,83391.0,0.00912918]
[1743905631976,0.0839778,83387.0,83386.0,0.033]
[1743905632176,0.0848578,83387.0,83386.0,0.03368]
[1743905632568,0.0848578,83387.0,83386.0,0.1176588]
[1743905633171,0.0858578,83387.0,83386.0,0.1176588]
[1743905633778,0.1181578,83387.0,83386.0,0.1176588]
[1743905634074,0.1191578,83387.0,83386.0,0.00068]
[1743905634281,0.1191578,83387.0,83386.0,0.0839788]
[1743905634467,0.1191578,83387.0,83386.0,0.0846188]
[1743905635076,0.1191578,83387.0,83386.0,0.00944135]
[1743905635282,0.1191578,83387.0,83386.0,0.09278015]
[1743905635472,0.1191578,83387.0,83386.0,0.0839788]
[1743905636878,0.0839798,83385.0,83384.0,8e-05]
[1743905637277,0.1167798,83385.0,83384.0,0.0840608]
[1743905637776,0.1475798,83385.0,83384.0,0.0840608]
[1743905638281,0.1485798,83385.0,83384.0,0.09305834]
[1743905638480,0.1495798,83385.0,83384.0,0.09305834]
[1743905639981,0.1504198,83385.0,83384.0,0.09305834]
[1743905640485,0.1504198,83385.0,83384.0,0.15905834]
[1743905640677,0.1504198,83385.0,83384.0,0.15965834]
[1743905642883,0.5112198,83385.0,83384.0,0.15965834]
[1743905645083,0.5621798,83385.0,83384.0,0.15965834]
[1743905647987,0.70527342,83385.0,83384.0,0.15965834]
[1743905648381,0.70427342,83385.0,83384.0,0.15965834]
[1743905648583,0.70527342,83385.0,83384.0,0.15965834]
[1743905650298,0.70427342,83385.0,83384.0,0.15965834]
[1743905650588,0.70527342,83385.0,83384.0,0.15965834]
[1743905650790,0.65431342,83385.0,83384.0,0.09365834]
[1743905650980,0.70527342,83385.0,83384.0,0.09305834]
[1743905651685,0.65431342,83385.0,83384.0,0.12365834]
[1743905651991,0.70527342,83385.0,83384.0,0.12365834]
[1743905653791,0.34447342,83385.0,83384.0,0.12365834]
[1743905654087,0.70527342,83385.0,83384.0,0.12365834]
[1743905655883,0.70527342,83385.0,83384.0,0.09365834]
[1743905656084,0.70527342,83385.0,83384.0,0.09305834]
[1743905656984,0.5621798,83385.0,83384.0,0.09305834]
[1743905657188,0.5621798,83385.0,83384.0,0.09365834]
[1743905657487,0.5621798,83385.0,83384.0,0.00907754]
[1743905657882,0.5621798,83385.0,83384.0,0.00899754]
[1743905658082,0.0839808,83384.0,83383.0,0.08416163]
[1743905658285,0.0848208,83384.0,83383.0,0.00077983]
[1743905658492,0.1479208,83384.0,83383.0,0.00017983]
[1743905658893,0.1479208,83384.0,83383.0,0.00077983]
[1743905659285,0.1489208,83384.0,83383.0,0.00077983]
[1743905659692,0.1499208,83384.0,83383.0,0.00017983]
[1743905659892,0.1499208,83384.0,83383.0,0.08416163]
[1743905660096,0.1499208,83384.0,83383.0,0.08476163]
[1743905660584,0.1499208,83384.0,83383.0,0.0937858]
[1743905661897,0.1187208,83384.0,83383.0,0.1588858]
[1743905662093,0.1696808,83384.0,83383.0,0.4388858]
[1743905662299,0.1696808,83384.0,83383.0,0.1588858]
[1743905662595,0.3128152,83384.0,83383.0,0.1588858]
[1743905662796,0.3128152,83384.0,83383.0,0.4388858]
[1743905663296,0.3128152,83384.0,83383.0,0.1588858]
[1743905663891,0.3128152,83384.0,83383.0,0.4188858]
[1743905664192,0.3128152,83384.0,83383.0,0.1588858]
[1743905664497,0.3128152,83384.0,83383.0,0.4288858]
[1743905664688,0.3128152,83384.0,83383.0,0.1588858]
[1743905665594,0.2618552,83384.0,83383.0,0.4088858]
[1743905665793,0.3128152,83384.0,83383.0,0.4088858]
[1743905665999,0.1187208,83384.0,83383.0,0.4088858]
[1743905666195,0.1696808,83384.0,83383.0,0.4088858]
[1743905666603,0.1696808,83384.0,83383.0,0.1588858]
[1743905667595,0.1696808,83384.0,83383.0,0.4088858]
[1743905667896,0.1696808,83384.0,83383.0,0.3988858]
[1743905668296,0.1696808,83384.0,83383.0,0.1588858]
[1743905669294,0.1696808,83384.0,83383.0,0.4188858]
[1743905669501,0.1696808,83384.0,83383.0,0.4288858]
[1743905670000,0.1696808,83384.0,83383.0,0.1588858]
[1743905670802,0.1696808,83384.0,83383.0,0.4188858]
[1743905671002,0.1696808,83384.0,83383.0,0.1588858]
[1743905671507,0.1696808,83384.0,83383.0,0.1258858]
[1743905672102,0.1696808,83384.0,83383.0,0.0937858]
[1743905672302,0.1696808,83384.0,83383.0,0.0931858]
[1743905672601,0.1187208,83384.0,83383.0,0.1238858]
[1743905672900,0.1696808,83384.0,83383.0,0.1238858]
[1743905673099,0.1187208,83384.0,83383.0,0.1238858]
[1743905673302,0.1696808,83384.0,83383.0,0.1238858]
[1743905674295,0.5304808,83384.0,83383.0,0.1238858]
[1743905675002,0.5621808,83384.0,83383.0,0.1238858]
[1743905675303,0.5621808,83384.0,83383.0,0.1244858]
[1743905677306,0.00017983,83400.0,83383.0,0.781304]
[1743905677500,0.00060001,83398.0,83397.0,0.4447677]
[1743905677806,0.00017983,83400.0,83399.0,0.0839657]
[1743905678107,0.00097983,83400.0,83399.0,0.3347657]
[1743905678309,0.00101983,83400.0,83399.0,0.3347657]
[1743905678606,0.00017983,83400.0,83399.0,0.3347657]
[1743905679511,0.03617983,83400.0,83399.0,0.0847657]
[1743905679713,0.04117983,83400.0,83399.0,0.3547657]
[1743905679907,0.04197983,83400.0,83399.0,0.3547657]
[1743905680302,0.04185983,83400.0,83399.0,0.3547657]
[1743905680907,0.04185983,83400.0,83399.0,0.0847657]
[1743905681108,0.04117983,83400.0,83399.0,0.3747657]
[1743905683205,0.04117983,83400.0,83399.0,0.0847657]
[1743905683408,0.04117983,83400.0,83399.0,0.3147657]
[1743905683599,0.04117983,83400.0,83399.0,0.0847657]
[1743905684197,0.12514453,83400.0,83399.0,0.0847657]
[1743905684903,0.12514453,83400.0,83399.0,0.1159657]
[1743905685107,0.12594453,83400.0,83399.0,0.1159657]
[1743905685306,0.12594453,83400.0,83399.0,0.3759657]
[1743905686000,0.12594453,83400.0,83399.0,0.1159657]
[1743905686411,0.04197983,83400.0,83399.0,0.3759657]
[1743905686611,0.04117983,83400.0,83399.0,0.3759657]
[1743905686796,0.04201983,83400.0,83399.0,0.4090657]
[1743905687002,0.04117983,83400.0,83399.0,0.4090657]
[1743905687402,0.01017983,83400.0,83399.0,0.4090657]
[1743905687701,0.01105983,83400.0,83399.0,0.4090657]
[1743905687902,0.01017983,83400.0,83399.0,0.4090657]
[1743905690509,0.01085983,83400.0,83399.0,0.4090657]
[1743905691415,0.01017983,83400.0,83399.0,0.4090657]
[1743905694510,0.04257983,83400.0,83399.0,0.4090657]
[1743905694711,0.04257983,83400.0,83399.0,0.1490657]
[1743905694917,0.04257983,83400.0,83399.0,0.3890657]
[1743905695107,0.04257983,83400.0,83399.0,0.1490657]
[1743905695308,0.04257983,83400.0,83399.0,0.1159657]
[1743905695509,0.04337983,83400.0,83399.0,0.3959657]
[1743905695810,0.07337983,83400.0,83399.0,0.1159657]
[1743905696116,0.07421983,83400.0,83399.0,0.3659657]
[1743905696316,0.07337983,83400.0,83399.0,0.3659657]
[1743905696516,0.07337983,83400.0,83399.0,0.1159657]
[1743905696721,0.07417983,83400.0,83399.0,0.1159657]
[1743905697311,0.07417983,83400.0,83399.0,0.3859657]
[1743905697511,0.07337983,83400.0,83399.0,0.3859657]
[1743905697820,0.07337983,83400.0,83399.0,0.3559657]
[1743905698612,0.07337983,83400.0,83399.0,0.1159657]
[1743905698813,0.07425983,83400.0,83399.0,0.1159657]
[1743905699620,0.07425983,83400.0,83399.0,0.3659657]
[1743905699815,0.07337983,83400.0,83399.0,0.3659657]
[1743905700018,0.07337983,83400.0,83399.0,0.1159657]
[1743905700222,0.07397984,83400.0,83399.0,0.1159657]
[1743905700414,0.07397984,83400.0,83399.0,0.3559657]
[1743905700612,0.07337983,83400.0,83399.0,0.3559657]
[1743905701322,0.07337983,83400.0,83399.0,0.1159657]
[1743905701523,0.07397984,83400.0,83399.0,0.1159657]
[1743905702322,0.07397984,83400.0,83399.0,0.0847657]
[1743905702511,0.07337983,83400.0,83399.0,0.0847657]
[1743905702920,0.07337983,83400.0,83399.0,0.1170657]
[1743905703325,0.15734453,83400.0,83399.0,0.1170657]
[1743905703525,0.15814453,83400.0,83399.0,0.0847657]
[1743905705120,0.15814453,83400.0,83399.0,0.1170657]
[1743905706927,0.07417983,83400.0,83399.0,0.1170657]
[1743905707128,0.07417983,83400.0,83399.0,0.1496657]
[1743905707330,0.15814453,83400.0,83399.0,0.1496657]
[1743905707831,0.07417983,83400.0,83399.0,0.1496657]
[1743905708530,0.15814453,83400.0,83399.0,0.1496657]
[1743905711639,0.15814453,83400.0,83399.0,0.5104657]
[1743905713038,0.07417983,83400.0,83399.0,0.7404657]
[1743905713239,0.04097983,83400.0,83399.0,0.7404657]
[1743905713540,0.17854677,83411.0,83410.0,0.0839546]
[1743905713735,0.17854677,83411.0,83410.0,0.6847546]
[1743905714146,0.17854677,83411.0,83410.0,0.7176546]
[1743905714936,0.17854677,83411.0,83410.0,0.7480546]
[1743905715142,0.17942677,83411.0,83410.0,0.7489346]
[1743905716146,0.18442677,83411.0,83410.0,0.7489346]
[1743905716848,0.00588,83411.0,83410.0,0.7489346]
[1743905717148,0.0363,83411.0,83410.0,0.7489346]
[1743905719048,0.0363,83411.0,83410.0,0.5089346]
[1743905719241,0.03714,83411.0,83410.0,0.5089346]
[1743905720147,0.03714,83411.0,83410.0,0.7789346]
[1743905720350,0.0004,83416.0,83415.0,0.0839496]
[1743905720651,0.0004,83416.0,83415.0,0.3239496]
[1743905720847,0.00017983,83419.0,83418.0,0.0839466]
[1743905721151,0.17854677,83423.0,83422.0,0.0839426]
[1743905721349,0.21407377,83430.0,83429.0,0.0839355]
[1743905721646,0.21407377,83430.0,83429.0,0.6847355]
[1743905721944,0.0319,83438.0,83437.0,0.0839275]
[1743905722145,0.0319,83438.0,83437.0,0.2939275]
[1743905722352,0.0319,83438.0,83437.0,0.4447275]
[1743905722851,0.0319,83438.0,83437.0,0.4780275]
[1743905723052,0.0329,83438.0,83437.0,0.4780275]
[1743905725155,0.0337,83438.0,83437.0,0.4788275]
[1743905726145,0.04605612,83438.0,83437.0,0.4788275]
[1743905727055,0.04605612,83438.0,83437.0,0.48770777]
[1743905728060,0.04525612,83438.0,83437.0,0.48770777]
[1743905728951,0.16312262,83438.0,83437.0,0.48770777]
[1743905729352,0.16228262,83438.0,83437.0,0.48770777]
[1743905729554,0.16308262,83438.0,83437.0,0.48770777]
[1743905730956,0.07915612,83438.0,83437.0,0.48770777]
[1743905731155,0.07835612,83438.0,83437.0,0.48770777]
[1743905733751,0.16228262,83438.0,83437.0,0.48770777]
[1743905734859,0.07835612,83438.0,83437.0,0.48770777]
[1743905735059,0.04645612,83438.0,83437.0,0.52040777]
[1743905735262,0.0419546,83456.0,83451.0,0.0839134]
[1743905735554,0.0851938,83452.0,83451.0,0.0839134]
[1743905735760,0.00128,83452.0,83451.0,0.0847534]
[1743905735961,0.0004,83452.0,83451.0,0.0847534]
[1743905736156,0.00124,83452.0,83451.0,0.0847534]
[1743905736358,0.0851524,83452.0,83451.0,0.0847534]
[1743905736558,0.1185524,83452.0,83451.0,0.1152534]
[1743905736860,0.1185524,83452.0,83451.0,0.3452534]
[1743905737064,0.13055563,83452.0,83451.0,0.1152534]
[1743905738158,0.04664323,83452.0,83451.0,0.1152534]
[1743905738468,0.04580323,83452.0,83451.0,0.1152534]
[1743905738652,0.04660323,83452.0,83451.0,0.1152534]
[1743905739649,0.04660323,83452.0,83451.0,0.3852534]
[1743905740053,0.04580323,83452.0,83451.0,0.3852534]
[1743905740864,0.01340323,83452.0,83451.0,0.3852534]
[1743905742266,0.0014,83452.0,83451.0,0.3852534]
[1743905746159,0.0315,83452.0,83451.0,0.3852534]
[1743905746565,0.0305,83452.0,83451.0,0.3852534]
[1743905750771,0.0305,83452.0,83451.0,0.4174534]
[1743905760679,0.1144124,83452.0,83451.0,0.1152534]
[1743905760880,0.1144124,83452.0,83451.0,0.00084]
[1743905761178,0.0839174,83447.0,83446.0,8e-05]
[1743905761477,0.0839174,83447.0,83437.0,0.00888027]
[1743905761478,0.0839265,83438.0,83437.0,0.00888027]
[1743905761780,0.0839265,83438.0,83437.0,0.0006]
[1743905761978,0.4453665,83438.0,83437.0,0.0006]
[1743905762179,0.0839295,83435.0,83434.0,8e-05]
[1743905762485,0.0839345,83430.0,83426.0,0.42975736]
[1743905762693,0.1355745,83430.0,83429.0,0.01002855]
[1743905762883,0.1355745,83430.0,83429.0,0.00093983]
[1743905763276,0.2005745,83430.0,83429.0,0.00093983]
[1743905764684,0.2324745,83430.0,83429.0,0.00093983]
[1743905764885,0.2324745,83430.0,83429.0,0.00025983]
[1743905765280,0.3824745,83430.0,83429.0,0.00911747]
[1743905765580,0.0839446,83420.0,83419.0,0.3608]
[1743905765780,0.0846246,83420.0,83419.0,0.3614]
[1743905766279,0.0846246,83420.0,83419.0,0.37028554]
[1743905766485,0.1483246,83420.0,83419.0,0.45423114]
[1743905768088,0.1992446,83420.0,83419.0,0.45423114]
[1743905772695,0.1483246,83420.0,83419.0,0.45423114]
[1743905772891,0.08334,83420.0,83419.0,0.45423114]
[1743905773092,0.08334,83420.0,83419.0,0.48673114]
[1743905774083,0.1672846,83420.0,83419.0,0.48673114]
[1743905774891,0.1672846,83420.0,83419.0,0.45423114]
[1743905779683,0.08334,83420.0,83419.0,0.48743114]
[1743905780086,0.0839446,83420.0,83419.0,0.48743114]
[1743905780286,0.1259146,83422.0,83421.0,0.0839436]
[1743905780496,0.1774746,83422.0,83421.0,0.0845836]
[1743905780892,0.1774746,83422.0,83421.0,0.1468836]
[1743905781090,0.1774746,83422.0,83421.0,0.1152836]
[1743905781289,0.1774746,83422.0,83421.0,0.03134]
[1743905781485,0.1774746,83422.0,83421.0,0.00064]
[1743905781696,0.5382746,83422.0,83421.0,0.00064]
[1743905781996,0.0839446,83420.0,83419.0,0.00888554]
[1743905782186,0.0846246,83420.0,83419.0,0.0006]
[1743905782698,0.1505246,83420.0,83419.0,0.0006]
[1743905784598,0.0839456,83419.0,83418.0,0.0840266]
[1743905784798,0.1170856,83419.0,83418.0,0.0846266]
[1743905784999,0.1811856,83419.0,83418.0,0.0846266]
[1743905785589,0.1811856,83419.0,83418.0,0.1171266]
[1743905786698,0.2322256,83419.0,83418.0,0.1171266]
[1743905788109,0.2322256,83419.0,83418.0,0.1499266]
[1743905789206,0.2322256,83419.0,83418.0,0.15898333]
[1743905790101,0.1997256,83419.0,83418.0,0.15898333]
[1743905792806,0.1684256,83419.0,83418.0,0.15898333]
[1743905794901,0.1684256,83419.0,83418.0,0.07503673]
[1743905795109,0.1684256,83419.0,83418.0,0.09368333]
[1743905795303,0.1684256,83419.0,83418.0,0.09360333]
[1743905797396,0.1985256,83419.0,83418.0,0.09360333]
[1743905797596,0.1985256,83419.0,83418.0,0.15680333]
[1743905797795,0.1984856,83419.0,83418.0,0.15680333]
[1743905798212,0.1474856,83419.0,83418.0,0.15680333]
[1743905798403,0.1984856,83419.0,83418.0,0.15680333]
[1743905800309,0.1474856,83419.0,83418.0,0.15680333]
[1743905800510,0.1984456,83419.0,83418.0,0.15680333]
[1743905801304,0.1984456,83419.0,83418.0,0.18680333]
[1743905804210,0.1984456,83419.0,83418.0,0.12620333]
[1743905804420,0.1984456,83419.0,83418.0,0.09360333]
[1743905805310,0.1984456,83419.0,83418.0,0.00965673]
[1743905806417,0.1984456,83419.0,83418.0,0.12610333]
[1743905810515,0.1474856,83419.0,83418.0,0.15790333]
[1743905810710,0.1984056,83419.0,83418.0,0.15790333]
[1743905814223,0.34051988,83419.0,83418.0,0.15790333]
[1743905822520,0.34051988,83419.0,83418.0,0.19090333]
[1743905822829,0.1984056,83419.0,83418.0,0.19090333]
[1743905824321,0.1984056,83419.0,83418.0,0.10695673]
[1743905824529,0.1984056,83419.0,83418.0,0.07395673]
[1743905824834,0.1474856,83419.0,83418.0,0.07395673]
[1743905825034,0.1984056,83419.0,83418.0,0.07395673]
[1743905825335,0.1474856,83419.0,83418.0,0.15790333]
[1743905825636,0.1984056,83419.0,83418.0,0.15790333]
[1743905826328,0.1984056,83419.0,83418.0,0.07395673]
[1743905826833,0.26446,83419.0,83394.0,0.3608]
[1743905827041,0.0839697,83395.0,83394.0,0.4782107]
[1743905827335,0.1348897,83395.0,83394.0,0.4782107]
[1743905827531,0.1356897,83395.0,83394.0,0.4782107]
[1743905828125,0.1356897,83395.0,83394.0,0.5433107]
[1743905828331,0.1348897,83395.0,83394.0,0.5463107]
[1743905828836,0.1348897,83395.0,83394.0,0.5513107]
[1743905829623,0.1348897,83395.0,83394.0,0.5591187]
[1743905829821,0.1357297,83395.0,83394.0,0.5591187]
[1743905831123,0.1682297,83395.0,83394.0,0.5591187]
[1743905831329,0.1990297,83395.0,83394.0,0.5263187]
[1743905831929,0.1990297,83395.0,83394.0,0.442348]
[1743905832135,0.21127633,83395.0,83394.0,0.442348]
[1743905832532,0.21127633,83395.0,83394.0,0.410448]
[1743905833123,0.21127633,83395.0,83394.0,0.377248]
[1743905833532,0.22927634,83395.0,83394.0,0.377248]
[1743905836131,0.22927634,83395.0,83394.0,0.016448]
[1743905836336,0.18047633,83395.0,83394.0,0.1004187]
[1743905836731,0.18059633,83395.0,83394.0,0.016448]
[1743905837035,0.18059633,83395.0,83394.0,0.080048]
[1743905838231,0.54139633,83395.0,83394.0,0.016448]
[1743905838429,0.0839728,83392.0,83391.0,0.00059958]
[1743905839441,0.1159728,83392.0,83391.0,0.00059958]
[1743905840145,0.1168128,83392.0,83391.0,0.00059958]
[1743905840639,0.1168128,83392.0,83391.0,0.00159958]
[1743905841741,0.1168128,83392.0,83391.0,0.00259958]
[1743905842740,0.1168128,83392.0,83391.0,0.01148528]
[1743905844237,0.1168128,83392.0,83391.0,0.01232528]
[1743905844630,0.1168128,83392.0,83391.0,0.01148528]
[1743905845129,0.1168128,83392.0,83391.0,0.04438528]
[1743905845731,0.1168128,83392.0,83391.0,0.07608528]
[1743905845936,0.1168128,83392.0,83391.0,0.07668528]
[1743905845937,0.1678528,83392.0,83391.0,0.07668528]
[1743905846738,0.1678528,83392.0,83391.0,0.04498528]
[1743905846936,0.1678528,83392.0,83391.0,0.04438528]
[1743905847340,0.1678528,83392.0,83391.0,0.01148528]
[1743905849046,0.1990528,83392.0,83391.0,0.01048528]
[1743905849245,0.2010528,83392.0,83391.0,0.01048528]
[1743905850142,0.2030528,83392.0,83391.0,0.00948528]
[1743905852942,0.0839768,83388.0,83387.0,0.0302]
[1743905853141,0.0847768,83388.0,83387.0,0.0308]
[1743905853343,0.0847768,83388.0,83387.0,0.0302]
[1743905853541,0.0847768,83388.0,83387.0,0.0308]
[1743905853750,0.1468768,83388.0,83387.0,0.0635]
[1743905854056,0.1980768,83388.0,83387.0,0.0635]
[1743905854249,0.1990768,83388.0,83387.0,0.0635]
[1743905854646,0.2000768,83388.0,83387.0,0.0635]
[1743905854857,0.2000768,83388.0,83387.0,0.03986714]
[1743905855046,0.2000768,83388.0,83387.0,0.03926714]
[1743905855955,0.1696768,83388.0,83387.0,0.03926714]
[1743905856256,0.1696768,83388.0,83387.0,0.07146714]
[1743905857555,0.27644998,83388.0,83387.0,0.07146714]
[1743905858854,0.27644998,83388.0,83387.0,0.03926714]
[1743905859052,0.30684998,83388.0,83387.0,0.03926714]
[1743905859647,0.25564998,83388.0,83387.0,0.03926714]
[1743905859956,0.24474998,83388.0,83387.0,0.15644494]
[1743905860151,0.24474998,83388.0,83387.0,0.51804494]
[1743905860366,0.24474998,83388.0,83387.0,0.15724494]
[1743905861168,0.1379768,83388.0,83387.0,0.15724494]
[1743905865269,0.1379368,83388.0,83387.0,0.15724494]
[1743905866365,0.1379368,83388.0,83387.0,0.07326714]
[1743905866766,0.1680368,83388.0,83387.0,0.07326714]
[1743905870679,0.1997368,83388.0,83387.0,0.07326714]
[1743905872178,0.1997368,83388.0,83387.0,0.15724494]
[1743905872480,0.1696368,83388.0,83387.0,0.07326714]
[1743905872981,0.3123986,83388.0,83387.0,0.07326714]
[1743905877278,0.2612386,83388.0,83387.0,0.07326714]
[1743905877486,0.3125186,83388.0,83387.0,0.07326714]
[1743905878087,0.3456186,83388.0,83387.0,0.00986714]
[1743905878576,0.3456186,83388.0,83387.0,0.04236714]
[1743905879287,0.2028568,83388.0,83387.0,0.04236714]
[1743905879473,0.47968,83388.0,83384.0,8e-05]
[1743905879679,0.0839798,83385.0,83384.0,8e-05]
[1743905880089,0.0839828,83382.0,83381.0,0.064]
[1743905880287,0.0839828,83382.0,83381.0,0.06408]
[1743905880488,0.0839828,83382.0,83381.0,0.04214964]
[1743905880984,0.1167828,83382.0,83381.0,0.04214964]
[1743905882489,0.1167828,83382.0,83381.0,0.04314964]
[1743905884190,0.1680228,83382.0,83381.0,0.04314964]
[1743905885586,0.16906281,83382.0,83381.0,0.04374964]
[1743905885774,0.20076281,83382.0,83381.0,0.04374964]
[1743905889381,0.20076281,83382.0,83381.0,0.04314964]
[1743905889582,0.20076281,83382.0,83381.0,0.04374964]